[Event "Early-Titled-Tuesday-Blitz-October-24-2023"]
[Site "Chess.com"]
[Date "2023.10.24"]
[Round "9"]
[White "eljanov"]
[Black "GMWSO"]
[Result "0-1"]
[WhiteElo "2813"]
[BlackElo "3064"]
[TimeControl "180+1"]
[EndTime "9:42:47 PDT"]
[Termination "GMWSO won on time"]

1. d4 {[%clk 0:03:00.9]} 1... Nf6 {[%clk 0:02:44.1]} 2. Bf4 {[%clk 0:02:59.9]}
2... c5 {[%clk 0:02:40.7]} 3. e3 {[%clk 0:02:58.4]} 3... Qb6 {[%clk 0:02:39.4]}
4. Nc3 {[%clk 0:02:52.9]} 4... d6 {[%clk 0:02:28.8]} 5. a3 {[%clk 0:02:34.7]}
5... g6 {[%clk 0:02:21.9]} 6. Nf3 {[%clk 0:02:31.1]} 6... Bg7 {[%clk 0:02:19.9]}
7. h3 {[%clk 0:02:29.8]} 7... O-O {[%clk 0:02:18.3]} 8. Be2 {[%clk 0:02:19.8]}
8... Bd7 {[%clk 0:01:35.4]} 9. Rb1 {[%clk 0:02:15.2]} 9... cxd4 {[%clk
0:01:31.9]} 10. exd4 {[%clk 0:02:15]} 10... Bf5 {[%clk 0:01:17.2]} 11. g4 {[%clk
0:02:07.3]} 11... Be4 {[%clk 0:01:10.7]} 12. O-O {[%clk 0:02:03.5]} 12... Nc6
{[%clk 0:01:02.4]} 13. Be3 {[%clk 0:01:38.8]} 13... Qc7 {[%clk 0:00:43.2]} 14.
d5 {[%clk 0:01:21.2]} 14... Bxf3 {[%clk 0:00:42.3]} 15. Bxf3 {[%clk 0:01:20.2]}
15... Ne5 {[%clk 0:00:42.4]} 16. Bg2 {[%clk 0:01:16.7]} 16... a6 {[%clk
0:00:37.4]} 17. Bd4 {[%clk 0:01:13.3]} 17... Rac8 {[%clk 0:00:31.8]} 18. Re1
{[%clk 0:01:12]} 18... Rfe8 {[%clk 0:00:30.6]} 19. f4 {[%clk 0:00:58]} 19... Nc4
{[%clk 0:00:30.4]} 20. Qd3 {[%clk 0:00:56.9]} 20... b5 {[%clk 0:00:27.6]} 21.
Ne2 {[%clk 0:00:51.4]} 21... Nd7 {[%clk 0:00:26.3]} 22. Bxg7 {[%clk 0:00:49.6]}
22... Kxg7 {[%clk 0:00:27.2]} 23. c3 {[%clk 0:00:48.1]} 23... Nc5 {[%clk
0:00:24.2]} 24. Qg3 {[%clk 0:00:39.1]} 24... e5 {[%clk 0:00:20.5]} 25. dxe6
{[%clk 0:00:36.5]} 25... Nxe6 {[%clk 0:00:21]} 26. f5 {[%clk 0:00:33.8]} 26...
Qc5+ {[%clk 0:00:20.7]} 27. Kh1 {[%clk 0:00:32.1]} 27... Ng5 {[%clk 0:00:16.8]}
28. Nd4 {[%clk 0:00:21.4]} 28... d5 {[%clk 0:00:15.6]} 29. Qf4 {[%clk
0:00:19.9]} 29... Ne4 {[%clk 0:00:14.2]} 30. Bxe4 {[%clk 0:00:20.2]} 30... dxe4
{[%clk 0:00:14.8]} 31. Rf1 {[%clk 0:00:16.8]} 31... Rc7 {[%clk 0:00:07.1]} 32.
Rbe1 {[%clk 0:00:10.3]} 32... Kg8 {[%clk 0:00:07.3]} 33. Re2 {[%clk 0:00:06]}
33... e3 {[%clk 0:00:06.9]} 34. b3 {[%clk 0:00:05.8]} 34... Nd2 {[%clk
0:00:06.3]} 35. Rfe1 {[%clk 0:00:04.3]} 35... Qd5+ {[%clk 0:00:06.6]} 36. Kh2
{[%clk 0:00:02.8]} 36... Rxc3 {[%clk 0:00:07.5]} 37. Rxd2 {[%clk 0:00:02.1]}
37... Re4 {[%clk 0:00:04]} 38. Qb8+ {[%clk 0:00:01.6]} 38... Kg7 {[%clk
0:00:04.7]} 39. f6+ {[%clk 0:00:02.1]} 39... Kh6 {[%clk 0:00:04.4]} 40. Qg3
{[%clk 0:00:01.3]} 40... g5 {[%clk 0:00:03.1]} 0-1

[Event "Early-Titled-Tuesday-Blitz-October-24-2023"]
[Site "Chess.com"]
[Date "2023.10.24"]
[Round "9"]
[White "Manukyan_Artak"]
[Black "McCarthyStone"]
[Result "1-0"]
[WhiteElo "2400"]
[BlackElo "2306"]
[TimeControl "180+1"]
[EndTime "9:42:48 PDT"]
[Termination "Manukyan_Artak won by resignation"]

1. e4 {[%clk 0:03:00.9]} 1... e5 {[%clk 0:03:00.2]} 2. Nf3 {[%clk 0:03:00.7]}
2... d6 {[%clk 0:03:00.9]} 3. Bc4 {[%clk 0:02:59.4]} 3... Nf6 {[%clk 0:03:01.2]}
4. Nc3 {[%clk 0:02:58.4]} 4... Be7 {[%clk 0:03:01.7]} 5. d4 {[%clk 0:02:58.8]}
5... exd4 {[%clk 0:03:02.5]} 6. Qxd4 {[%clk 0:02:59]} 6... O-O {[%clk
0:03:03.4]} 7. Bg5 {[%clk 0:02:58]} 7... a6 {[%clk 0:03:04]} 8. O-O-O {[%clk
0:02:57.5]} 8... b5 {[%clk 0:03:04.6]} 9. Bd3 {[%clk 0:02:55.1]} 9... c5 {[%clk
0:03:05]} 10. Qe3 {[%clk 0:02:53.6]} 10... Be6 {[%clk 0:03:04.7]} 11. h4 {[%clk
0:02:48.1]} 11... b4 {[%clk 0:03:05.1]} 12. Bxf6 {[%clk 0:02:42.7]} 12... Bxf6
{[%clk 0:03:04.1]} 13. Nd5 {[%clk 0:02:42.9]} 13... Bxd5 {[%clk 0:03:03.8]} 14.
exd5 {[%clk 0:02:43.8]} 14... Nd7 {[%clk 0:03:00.3]} 15. g4 {[%clk 0:02:38]}
15... Re8 {[%clk 0:02:49.5]} 16. Qf4 {[%clk 0:02:36.7]} 16... Qa5 {[%clk
0:02:46.4]} 17. Kb1 {[%clk 0:02:35.2]} 17... Ne5 {[%clk 0:02:24.5]} 18. g5
{[%clk 0:02:24.3]} 18... Nxd3 {[%clk 0:02:17.9]} 19. Rxd3 {[%clk 0:02:22.9]}
19... Be5 {[%clk 0:02:16.8]} 20. Qc4 {[%clk 0:02:16]} 20... Qb5 {[%clk
0:02:11.8]} 21. Qxb5 {[%clk 0:02:12]} 21... axb5 {[%clk 0:02:12.7]} 22. Re1
{[%clk 0:02:10.5]} 22... Bf4 {[%clk 0:02:08.9]} 23. Rdd1 {[%clk 0:02:07.7]}
23... Kf8 {[%clk 0:02:03.1]} 24. Rxe8+ {[%clk 0:02:02.4]} 24... Rxe8 {[%clk
0:02:04]} 25. Re1 {[%clk 0:02:02.7]} 25... Rxe1+ {[%clk 0:02:02.9]} 26. Nxe1
{[%clk 0:02:03.6]} 26... h6 {[%clk 0:02:03.3]} 27. gxh6 {[%clk 0:01:18.3]} 27...
Bxh6 {[%clk 0:02:04.2]} 28. a3 {[%clk 0:01:08.1]} 28... bxa3 {[%clk 0:02:02]}
29. bxa3 {[%clk 0:01:08.2]} 29... Ke7 {[%clk 0:02:02.6]} 30. c4 {[%clk
0:01:00.2]} 30... bxc4 {[%clk 0:02:02.5]} 31. a4 {[%clk 0:01:00]} 31... Bd2
{[%clk 0:01:59.5]} 32. Nf3 {[%clk 0:00:52.7]} 32... Ba5 {[%clk 0:01:57.2]} 33.
Ng5 {[%clk 0:00:47.3]} 33... Kf6 {[%clk 0:01:46.4]} 34. f4 {[%clk 0:00:43.1]}
34... Bc7 {[%clk 0:01:25.5]} 35. Kc2 {[%clk 0:00:39.1]} 35... Ba5 {[%clk
0:00:59.1]} 36. Ne4+ {[%clk 0:00:35.9]} 36... Ke7 {[%clk 0:00:47.3]} 37. h5
{[%clk 0:00:35.4]} 37... Kd7 {[%clk 0:00:17.5]} 38. f5 {[%clk 0:00:24.7]} 38...
Ke7 {[%clk 0:00:10.8]} 39. f6+ {[%clk 0:00:20.4]} 39... Kf8 {[%clk 0:00:08.4]}
40. fxg7+ {[%clk 0:00:15.4]} 40... Kxg7 {[%clk 0:00:08.7]} 41. Nxd6 {[%clk
0:00:16.2]} 41... Kh6 {[%clk 0:00:05.2]} 42. Nxc4 {[%clk 0:00:15]} 42... Bd8
{[%clk 0:00:05.7]} 43. a5 {[%clk 0:00:15.1]} 43... Bc7 {[%clk 0:00:04.3]} 44. a6
{[%clk 0:00:14.3]} 44... Bb8 {[%clk 0:00:04.3]} 45. d6 {[%clk 0:00:14.9]} 1-0

[Event "Early-Titled-Tuesday-Blitz-October-24-2023"]
[Site "Chess.com"]
[Date "2023.10.24"]
[Round "9"]
[White "krzyzan94"]
[Black "tusplingher"]
[Result "1-0"]
[WhiteElo "2742"]
[BlackElo "2497"]
[TimeControl "180+1"]
[EndTime "9:42:52 PDT"]
[Termination "krzyzan94 won by resignation"]

1. e4 {[%clk 0:03:00.9]} 1... c5 {[%clk 0:02:55.8]} 2. Nf3 {[%clk 0:03:01.2]}
2... d6 {[%clk 0:02:55.2]} 3. d4 {[%clk 0:03:00.9]} 3... cxd4 {[%clk 0:02:55.4]}
4. Nxd4 {[%clk 0:03:01.8]} 4... Nf6 {[%clk 0:02:55.7]} 5. Nc3 {[%clk 0:03:02.5]}
5... a6 {[%clk 0:02:55.7]} 6. Be2 {[%clk 0:03:02.7]} 6... e5 {[%clk 0:02:55.2]}
7. Nb3 {[%clk 0:03:02.3]} 7... Be7 {[%clk 0:02:54.6]} 8. O-O {[%clk 0:02:59.9]}
8... O-O {[%clk 0:02:54.5]} 9. Qd3 {[%clk 0:03:00]} 9... Nc6 {[%clk 0:02:54]}
10. Be3 {[%clk 0:02:35.3]} 10... Be6 {[%clk 0:02:50.6]} 11. Rad1 {[%clk
0:02:18.6]} 11... Rc8 {[%clk 0:02:48.2]} 12. a3 {[%clk 0:02:17.8]} 12... Qc7
{[%clk 0:02:43.6]} 13. Nd5 {[%clk 0:02:16.1]} 13... Bxd5 {[%clk 0:02:39.9]} 14.
exd5 {[%clk 0:02:17]} 14... Na5 {[%clk 0:02:36.9]} 15. Nxa5 {[%clk 0:02:14.9]}
15... Qxa5 {[%clk 0:02:37.2]} 16. b4 {[%clk 0:02:03.3]} 16... Qa4 {[%clk
0:02:32.9]} 17. c4 {[%clk 0:02:03.3]} 17... Rfd8 {[%clk 0:02:28.5]} 18. Rc1
{[%clk 0:01:56.8]} 18... Qe8 {[%clk 0:02:11.8]} 19. Rfd1 {[%clk 0:01:50.2]}
19... h6 {[%clk 0:02:02.2]} 20. h3 {[%clk 0:01:41]} 20... Bf8 {[%clk 0:01:59.1]}
21. Bb6 {[%clk 0:01:40]} 21... Rd7 {[%clk 0:01:59.1]} 22. Qe3 {[%clk 0:01:35.3]}
22... Be7 {[%clk 0:01:53.7]} 23. a4 {[%clk 0:01:14.7]} 23... Bd8 {[%clk
0:01:53]} 24. a5 {[%clk 0:01:15.3]} 24... Bxb6 {[%clk 0:01:43.1]} 25. axb6
{[%clk 0:01:15.8]} 25... Qd8 {[%clk 0:01:43.7]} 26. Bf3 {[%clk 0:01:12.2]} 26...
Qe7 {[%clk 0:01:33.3]} 27. c5 {[%clk 0:00:57.7]} 27... dxc5 {[%clk 0:01:30.8]}
28. bxc5 {[%clk 0:00:56.8]} 28... e4 {[%clk 0:01:29.9]} 29. d6 {[%clk
0:00:53.3]} 29... Qe5 {[%clk 0:01:25.6]} 30. Be2 {[%clk 0:00:49.7]} 30... Nd5
{[%clk 0:01:20.8]} 31. Qd4 {[%clk 0:00:28.3]} 31... Qxd4 {[%clk 0:01:15.2]} 32.
Rxd4 {[%clk 0:00:29.2]} 32... Nf4 {[%clk 0:01:12.4]} 33. Bf1 {[%clk 0:00:16.5]}
33... Ne6 {[%clk 0:01:10.7]} 34. Rd5 {[%clk 0:00:08.6]} 34... Nf4 {[%clk
0:01:03.4]} 35. Re5 {[%clk 0:00:05.5]} 35... Ne6 {[%clk 0:00:35.5]} 36. Rc4
{[%clk 0:00:05.7]} 36... Rc6 {[%clk 0:00:25.6]} 37. h4 {[%clk 0:00:05.7]} 37...
g6 {[%clk 0:00:24.7]} 38. g3 {[%clk 0:00:06.2]} 38... Kg7 {[%clk 0:00:24.9]} 39.
Bh3 {[%clk 0:00:06.5]} 39... Kf6 {[%clk 0:00:24.9]} 40. Bxe6 {[%clk 0:00:06.8]}
40... fxe6 {[%clk 0:00:24.5]} 41. Rcxe4 {[%clk 0:00:06.4]} 41... Kf7 {[%clk
0:00:21.6]} 42. Rxe6 {[%clk 0:00:06.9]} 42... Rxc5 {[%clk 0:00:21.9]} 43. Re7+
{[%clk 0:00:06.8]} 43... Rxe7 {[%clk 0:00:22.5]} 44. Rxe7+ {[%clk 0:00:07.4]}
44... Kf6 {[%clk 0:00:22.8]} 45. Rxb7 {[%clk 0:00:07.1]} 45... Rd5 {[%clk
0:00:22.5]} 46. d7 {[%clk 0:00:06.5]} 46... Ke7 {[%clk 0:00:22.6]} 47. Ra7
{[%clk 0:00:06.2]} 47... Rxd7 {[%clk 0:00:22.1]} 48. b7 {[%clk 0:00:06.3]} 48...
Rd1+ {[%clk 0:00:18.3]} 49. Kg2 {[%clk 0:00:06.9]} 49... Rb1 {[%clk 0:00:18.9]}
50. b8=Q+ {[%clk 0:00:07.3]} 1-0

[Event "Early-Titled-Tuesday-Blitz-October-24-2023"]
[Site "Chess.com"]
[Date "2023.10.24"]
[Round "9"]
[White "Fh2411"]
[Black "Maect19"]
[Result "1-0"]
[WhiteElo "2525"]
[BlackElo "2295"]
[TimeControl "180+1"]
[EndTime "9:42:52 PDT"]
[Termination "Fh2411 won by resignation"]

1. d4 {[%clk 0:02:51.9]} 1... d5 {[%clk 0:02:59]} 2. Nf3 {[%clk 0:02:52.4]} 2...
Nf6 {[%clk 0:02:57.9]} 3. Bf4 {[%clk 0:02:53]} 3... e6 {[%clk 0:02:57.5]} 4. e3
{[%clk 0:02:53.5]} 4... Bd6 {[%clk 0:02:57.3]} 5. Bg3 {[%clk 0:02:54]} 5... Nc6
{[%clk 0:02:57.1]} 6. Nbd2 {[%clk 0:02:52.8]} 6... O-O {[%clk 0:02:56.9]} 7. c3
{[%clk 0:02:49]} 7... Qe7 {[%clk 0:02:56.6]} 8. Ne5 {[%clk 0:02:49.1]} 8... Nd7
{[%clk 0:02:54.9]} 9. f4 {[%clk 0:02:47.8]} 9... f6 {[%clk 0:02:53.9]} 10. Nxd7
{[%clk 0:02:44.4]} 10... Bxd7 {[%clk 0:02:51.8]} 11. Nf3 {[%clk 0:02:45]} 11...
e5 {[%clk 0:02:47.9]} 12. dxe5 {[%clk 0:02:44.5]} 12... fxe5 {[%clk 0:02:47.8]}
13. Qxd5+ {[%clk 0:02:44.9]} 13... Kh8 {[%clk 0:02:44.6]} 14. fxe5 {[%clk
0:02:43.2]} 14... Bc5 {[%clk 0:02:09.8]} 15. Bc4 {[%clk 0:01:57.7]} 15... Bxe3
{[%clk 0:01:59.4]} 16. e6 {[%clk 0:01:50.8]} 16... Be8 {[%clk 0:01:49.9]} 17.
Qe4 {[%clk 0:01:48.1]} 17... Bb6 {[%clk 0:01:39.6]} 18. Nh4 {[%clk 0:01:46]}
18... Bh5 {[%clk 0:01:23.8]} 19. Bd3 {[%clk 0:01:40.4]} 19... g6 {[%clk
0:01:04.1]} 20. Nf3 {[%clk 0:01:19.8]} 20... Rae8 {[%clk 0:00:58.4]} 21. Bc4
{[%clk 0:01:15.3]} 21... Bxf3 {[%clk 0:00:50.7]} 22. gxf3 {[%clk 0:01:16.2]}
22... Qf6 {[%clk 0:00:48.1]} 23. Bd5 {[%clk 0:01:13]} 23... Qf5 {[%clk
0:00:41.2]} 24. O-O-O {[%clk 0:01:04.2]} 24... Qxe4 {[%clk 0:00:38.7]} 25. fxe4
{[%clk 0:01:04.3]} 25... Kg7 {[%clk 0:00:32.6]} 26. Rhf1 {[%clk 0:01:02.1]}
26... Nd8 {[%clk 0:00:28.6]} 27. Be5+ {[%clk 0:00:54.2]} 27... Kh6 {[%clk
0:00:16.8]} 28. Rxf8 {[%clk 0:00:53.5]} 28... Rxf8 {[%clk 0:00:17.7]} 29. e7
{[%clk 0:00:54]} 29... Re8 {[%clk 0:00:17.8]} 30. exd8=Q {[%clk 0:00:47.2]}
30... Rxd8 {[%clk 0:00:18.7]} 31. Bxb7 {[%clk 0:00:36.8]} 31... Re8 {[%clk
0:00:18.6]} 32. Bf4+ {[%clk 0:00:35.9]} 32... Kh5 {[%clk 0:00:18.8]} 33. Rd7
{[%clk 0:00:28]} 33... c5 {[%clk 0:00:15.2]} 34. Rxh7+ {[%clk 0:00:25.8]} 34...
Kg4 {[%clk 0:00:15.8]} 35. Bg3 {[%clk 0:00:23.8]} 35... c4 {[%clk 0:00:15.7]}
36. b3 {[%clk 0:00:22.3]} 36... cxb3 {[%clk 0:00:13.3]} 37. axb3 {[%clk
0:00:23.2]} 37... Rd8 {[%clk 0:00:12.5]} 38. Kc2 {[%clk 0:00:23.1]} 38... Be3
{[%clk 0:00:12.3]} 39. Bd5 {[%clk 0:00:22.4]} 39... Rf8 {[%clk 0:00:11.2]} 40.
b4 {[%clk 0:00:20]} 40... Rf1 {[%clk 0:00:11.1]} 41. Rg7 {[%clk 0:00:18.7]}
41... g5 {[%clk 0:00:10.5]} 42. Kd3 {[%clk 0:00:18.5]} 42... Bc1 {[%clk
0:00:08.4]} 43. b5 {[%clk 0:00:18.4]} 43... Rf3+ {[%clk 0:00:07.4]} 44. Kc2
{[%clk 0:00:17.4]} 44... Be3 {[%clk 0:00:06.9]} 45. Rf7 {[%clk 0:00:16.1]} 1-0

[Event "Early-Titled-Tuesday-Blitz-October-24-2023"]
[Site "Chess.com"]
[Date "2023.10.24"]
[Round "9"]
[White "Jojo_898"]
[Black "Malikova777"]
[Result "1/2-1/2"]
[WhiteElo "2343"]
[BlackElo "2254"]
[TimeControl "180+1"]
[EndTime "9:42:52 PDT"]
[Termination "Game drawn - insufficient material"]

1. e4 {[%clk 0:03:00.9]} 1... c6 {[%clk 0:02:59.1]} 2. d4 {[%clk 0:03:00.4]}
2... d5 {[%clk 0:03:00]} 3. Nd2 {[%clk 0:03:00.5]} 3... dxe4 {[%clk 0:02:58.4]}
4. Nxe4 {[%clk 0:03:01.4]} 4... Bf5 {[%clk 0:02:58.6]} 5. Ng3 {[%clk 0:03:02]}
5... Bg6 {[%clk 0:02:59.5]} 6. Nf3 {[%clk 0:03:02.2]} 6... Nd7 {[%clk
0:02:57.5]} 7. h4 {[%clk 0:03:02.7]} 7... h6 {[%clk 0:02:57.4]} 8. Bd3 {[%clk
0:03:03.3]} 8... Bxd3 {[%clk 0:02:57.4]} 9. Qxd3 {[%clk 0:03:04.2]} 9... e6
{[%clk 0:02:58.2]} 10. Bf4 {[%clk 0:03:01.7]} 10... Qa5+ {[%clk 0:02:58.1]} 11.
c3 {[%clk 0:03:00]} 11... Ngf6 {[%clk 0:02:54.5]} 12. O-O {[%clk 0:03:00]} 12...
Nd5 {[%clk 0:02:53.7]} 13. Bd2 {[%clk 0:02:57.4]} 13... Qc7 {[%clk 0:02:53.4]}
14. c4 {[%clk 0:02:57.5]} 14... Nf4 {[%clk 0:02:52.2]} 15. Qe3 {[%clk
0:02:48.6]} 15... Ng6 {[%clk 0:02:47.2]} 16. d5 {[%clk 0:02:46.2]} 16... e5
{[%clk 0:02:24]} 17. dxc6 {[%clk 0:02:44.2]} 17... bxc6 {[%clk 0:02:23.8]} 18.
h5 {[%clk 0:02:42.5]} 18... Nf4 {[%clk 0:02:16.7]} 19. Rfe1 {[%clk 0:02:41.7]}
19... O-O-O {[%clk 0:02:05.8]} 20. Nxe5 {[%clk 0:02:34.6]} 20... Qxe5 {[%clk
0:02:00.9]} 21. Qxf4 {[%clk 0:02:31.8]} 21... Qxf4 {[%clk 0:01:56.1]} 22. Bxf4
{[%clk 0:02:32.7]} 22... Bc5 {[%clk 0:01:51.8]} 23. Ne4 {[%clk 0:02:27.4]} 23...
Bb4 {[%clk 0:01:44.6]} 24. Red1 {[%clk 0:02:22.8]} 24... Nf6 {[%clk 0:01:44]}
25. Nxf6 {[%clk 0:02:16]} 25... gxf6 {[%clk 0:01:44.9]} 26. a3 {[%clk
0:02:12.8]} 26... Bc5 {[%clk 0:01:41.9]} 27. b4 {[%clk 0:02:10.1]} 27... Bd4
{[%clk 0:01:40.6]} 28. Ra2 {[%clk 0:02:10.3]} 28... Bxf2+ {[%clk 0:01:38.7]} 29.
Kxf2 {[%clk 0:02:11.2]} 29... Rxd1 {[%clk 0:01:37.9]} 30. Be3 {[%clk 0:02:10.6]}
30... Kb7 {[%clk 0:01:34.6]} 31. Kf3 {[%clk 0:02:09.4]} 31... Rd3 {[%clk
0:01:33]} 32. Ke4 {[%clk 0:02:03.5]} 32... Rb3 {[%clk 0:01:29.9]} 33. Bd4 {[%clk
0:02:03.7]} 33... Re8+ {[%clk 0:01:21]} 34. Kf5 {[%clk 0:02:03.4]} 34... Rg8
{[%clk 0:01:15]} 35. Kxf6 {[%clk 0:01:58.1]} 35... Rg5 {[%clk 0:01:12.6]} 36.
Kxf7 {[%clk 0:01:48.6]} 36... Rxh5 {[%clk 0:01:12.5]} 37. Bc5 {[%clk 0:01:35.9]}
37... Rf5+ {[%clk 0:01:05.2]} 38. Kg6 {[%clk 0:01:35.1]} 38... Rg5+ {[%clk
0:01:04.5]} 39. Kxh6 {[%clk 0:01:32.5]} 39... Rbg3 {[%clk 0:01:02.3]} 40. Re2
{[%clk 0:01:30.3]} 40... Rxg2 {[%clk 0:00:55.3]} 41. Re7+ {[%clk 0:01:28]} 41...
Kc8 {[%clk 0:00:55.4]} 42. Re6 {[%clk 0:01:11.3]} 42... Kd7 {[%clk 0:00:44.8]}
43. Rd6+ {[%clk 0:01:11.1]} 43... Kc7 {[%clk 0:00:44.8]} 44. Rf6 {[%clk
0:01:05]} 44... R5g4 {[%clk 0:00:40.1]} 45. Kh7 {[%clk 0:00:57.9]} 45... Rh2+
{[%clk 0:00:36.2]} 46. Rh6 {[%clk 0:00:58.7]} 46... Rxh6+ {[%clk 0:00:36.5]} 47.
Kxh6 {[%clk 0:00:59.6]} 47... Rxc4 {[%clk 0:00:36.9]} 48. Bxa7 {[%clk
0:00:59.1]} 48... Rc3 {[%clk 0:00:34.4]} 49. a4 {[%clk 0:00:59.1]} 49... Rc4
{[%clk 0:00:33.1]} 50. Bc5 {[%clk 0:00:58.6]} 50... Kd7 {[%clk 0:00:30.2]} 51.
Kg5 {[%clk 0:00:58.6]} 51... Ke6 {[%clk 0:00:30.3]} 52. a5 {[%clk 0:00:57.4]}
52... Kd7 {[%clk 0:00:29.1]} 53. a6 {[%clk 0:00:57.5]} 53... Kc7 {[%clk
0:00:28.3]} 54. a7 {[%clk 0:00:57.8]} 54... Kb7 {[%clk 0:00:28.7]} 55. Kf5
{[%clk 0:00:57.4]} 55... Rc2 {[%clk 0:00:24.8]} 56. Ke5 {[%clk 0:00:57.2]} 56...
Rd2 {[%clk 0:00:25]} 57. Ke6 {[%clk 0:00:56.8]} 57... Rd1 {[%clk 0:00:24.6]} 58.
Ke5 {[%clk 0:00:55.1]} 58... Rd2 {[%clk 0:00:24.9]} 59. Bd4 {[%clk 0:00:54.4]}
59... Rd1 {[%clk 0:00:21.6]} 60. Be3 {[%clk 0:00:53.5]} 60... Re1 {[%clk
0:00:20.6]} 61. Ke4 {[%clk 0:00:52.5]} 61... Rxe3+ {[%clk 0:00:19.8]} 62. Kxe3
{[%clk 0:00:52.3]} 62... Kxa7 {[%clk 0:00:20.7]} 63. Kd4 {[%clk 0:00:52.9]}
63... Kb6 {[%clk 0:00:21.2]} 64. Kc4 {[%clk 0:00:53.8]} 64... Kb7 {[%clk
0:00:20.9]} 65. Kc5 {[%clk 0:00:54.7]} 65... Kc7 {[%clk 0:00:21.8]} 66. b5
{[%clk 0:00:54.9]} 66... cxb5 {[%clk 0:00:22.7]} 67. Kxb5 {[%clk 0:00:55.8]}
1/2-1/2

[Event "Early-Titled-Tuesday-Blitz-October-24-2023"]
[Site "Chess.com"]
[Date "2023.10.24"]
[Round "9"]
[White "dawid498"]
[Black "venturov"]
[Result "0-1"]
[WhiteElo "2663"]
[BlackElo "2516"]
[TimeControl "180+1"]
[EndTime "9:42:54 PDT"]
[Termination "venturov won on time"]

1. Nf3 {[%clk 0:03:00.9]} 1... Nf6 {[%clk 0:02:58.6]} 2. e3 {[%clk 0:03:01.8]}
2... e6 {[%clk 0:02:58]} 3. c4 {[%clk 0:03:02.3]} 3... b6 {[%clk 0:02:58.1]} 4.
b3 {[%clk 0:03:02.7]} 4... Bb7 {[%clk 0:02:58.6]} 5. Bb2 {[%clk 0:03:03.4]} 5...
c5 {[%clk 0:02:58.6]} 6. Be2 {[%clk 0:03:03.4]} 6... Be7 {[%clk 0:02:58.8]} 7.
O-O {[%clk 0:03:03.3]} 7... O-O {[%clk 0:02:59.5]} 8. d3 {[%clk 0:03:01.2]} 8...
d6 {[%clk 0:02:53.8]} 9. Nbd2 {[%clk 0:03:01.7]} 9... Nbd7 {[%clk 0:02:54.3]}
10. Rc1 {[%clk 0:02:47.5]} 10... Qc7 {[%clk 0:02:53.6]} 11. Rc2 {[%clk 0:02:46]}
11... Rac8 {[%clk 0:02:53.9]} 12. Qa1 {[%clk 0:02:45.9]} 12... Rfd8 {[%clk
0:02:51]} 13. a3 {[%clk 0:02:37.6]} 13... Qb8 {[%clk 0:02:51]} 14. Rfc1 {[%clk
0:02:33.3]} 14... a6 {[%clk 0:02:49.6]} 15. b4 {[%clk 0:02:30.9]} 15... Bc6
{[%clk 0:02:42.8]} 16. d4 {[%clk 0:02:17.8]} 16... Bf8 {[%clk 0:02:23.5]} 17. b5
{[%clk 0:02:01.3]} 17... axb5 {[%clk 0:02:19.3]} 18. cxb5 {[%clk 0:02:02.2]}
18... Bb7 {[%clk 0:02:12.3]} 19. dxc5 {[%clk 0:01:57.7]} 19... dxc5 {[%clk
0:02:09.3]} 20. Nc4 {[%clk 0:01:55.5]} 20... Nd5 {[%clk 0:01:50.8]} 21. Nfe5
{[%clk 0:01:41.6]} 21... f6 {[%clk 0:01:41.4]} 22. Nxd7 {[%clk 0:01:32.8]} 22...
Rxd7 {[%clk 0:01:42]} 23. Bg4 {[%clk 0:01:27.7]} 23... f5 {[%clk 0:01:35.5]} 24.
Bf3 {[%clk 0:01:21.8]} 24... Bd6 {[%clk 0:01:22]} 25. Nxd6 {[%clk 0:01:01.1]}
25... Qxd6 {[%clk 0:01:20]} 26. Be5 {[%clk 0:01:01.7]} 26... Qe7 {[%clk
0:01:15.8]} 27. e4 {[%clk 0:01:00.9]} 27... fxe4 {[%clk 0:01:14.6]} 28. Bxe4
{[%clk 0:01:01.8]} 28... Qg5 {[%clk 0:01:10.8]} 29. g3 {[%clk 0:00:53.2]} 29...
Rcd8 {[%clk 0:01:10]} 30. h4 {[%clk 0:00:48.2]} 30... Qg4 {[%clk 0:01:06.4]} 31.
f3 {[%clk 0:00:48.7]} 31... Qh5 {[%clk 0:00:59]} 32. Re1 {[%clk 0:00:43.5]}
32... Rf8 {[%clk 0:00:46.9]} 33. g4 {[%clk 0:00:35.1]} 33... Qe8 {[%clk
0:00:38.1]} 34. Rce2 {[%clk 0:00:32.7]} 34... Qd8 {[%clk 0:00:37.3]} 35. h5
{[%clk 0:00:29.9]} 35... Rdf7 {[%clk 0:00:35.7]} 36. Rf2 {[%clk 0:00:12.8]}
36... Qg5 {[%clk 0:00:30.9]} 37. Bd6 {[%clk 0:00:10.6]} 37... Qh4 {[%clk
0:00:18.7]} 38. Bxf8 {[%clk 0:00:07.8]} 38... Rxf8 {[%clk 0:00:19.2]} 39. Qe5
{[%clk 0:00:06.9]} 39... Nf4 {[%clk 0:00:17.7]} 40. Ree2 {[%clk 0:00:01.1]}
40... Qg3+ {[%clk 0:00:03]} 41. Kf1 {[%clk 0:00:01.4]} 41... Nxe2 {[%clk
0:00:03.5]} 42. Kxe2 {[%clk 0:00:01.6]} 42... Qxe5 {[%clk 0:00:03.4]} 0-1